bitfinex/quotes_SOLUSD_20250722
["timestamp","ask_amount","ask_price","bid_price","bid_amount"]
[1753147241473,16.78468397,196.12,196.08,5.0999592]
[1753147241668,18.71578794,196.13,196.08,5.0999592]
[1753147241880,18.71578794,196.12,196.08,5.0999592]
[1753147242087,16.78468397,196.11,196.08,5.0999592]
[1753147242597,0.7,196.11,196.05,17.85258861]
[1753147242798,18.71578794,196.13,196.05,17.85258861]
[1753147242970,18.71578794,196.13,196.07,18.71578794]
[1753147243572,18.71578794,196.08,196.02,5.10152025]
[1753147243799,0.7,196.07,196.01,0.03]
[1753147244105,35.50047191,196.02,196.01,0.03]
[1753147244692,36.20047191,196.02,196.01,0.03]
[1753147245075,0.7,196.02,196.01,0.03]
[1753147245391,10.0,196.1,196.01,0.03]
[1753147245392,16.78468397,196.03,196.01,0.03]
[1753147245599,46.86,196.06,196.01,0.03]
[1753147245600,46.16,196.06,196.01,0.03]
[1753147245871,36.7,196.14,196.02,18.71578794]
[1753147245872,18.71578794,196.07,196.02,18.71578794]
[1753147246073,18.71578794,196.07,196.01,0.03]
[1753147246074,18.71578794,196.03,196.01,0.03]
[1753147246287,0.7,196.06,196.01,0.03]
[1753147246288,35.50047191,196.02,196.01,0.03]
[1753147246589,0.7,196.02,196.01,0.03]
[1753147246896,18.71578794,196.02,196.01,0.03]
[1753147247098,18.71578794,196.05,196.01,0.03]
[1753147247314,0.7,196.06,196.01,0.03]
[1753147247482,0.7,196.06,196.01,23.84733211]
[1753147247800,46.06,196.07,196.01,5.13154417]
[1753147248011,64.77578794,196.07,196.01,23.84733211]
[1753147248186,16.78468397,196.09,196.02,18.71578794]
[1753147248504,16.78468397,196.09,196.04,18.71578794]
[1753147248505,18.71578794,196.09,196.04,18.71578794]
[1753147248711,18.71578794,196.09,196.03,18.71578794]
[1753147248876,18.71578794,196.11,196.05,18.71578794]
[1753147249291,81.42047191,196.12,196.05,18.71578794]
[1753147249485,81.42047191,196.12,196.04,26.0]
[1753147249701,0.7,196.14,196.09,26.0]
[1753147249913,35.50047191,196.13,196.07,18.71578794]
[1753147250272,16.78468397,196.13,196.07,18.71578794]
[1753147250598,45.84,196.14,196.09,18.71578794]
[1753147250796,0.7,196.19,196.1,18.71578794]
[1753147250999,16.78468397,196.17,196.12,18.71578794]
[1753147251207,35.50047191,196.17,196.11,18.71578794]
[1753147251694,16.78468397,196.17,196.12,5.09891902]
[1753147251898,16.78468397,196.17,196.12,23.81470696]
[1753147252107,0.06,196.21,196.13,18.71578794]
[1753147252314,35.50047191,196.19,196.13,18.71578794]
[1753147252472,18.71578794,196.16,196.12,5.09891902]
[1753147252676,16.78468397,196.19,196.1,5.09943906]
[1753147252920,18.71578794,196.11,196.06,12.75102471]
[1753147253208,0.7,196.14,196.07,18.71578794]
[1753147253417,0.7,196.14,196.08,18.71578794]
[1753147253581,19.41578794,196.14,196.08,18.71578794]
[1753147253779,18.71578794,196.13,196.09,5.09969911]
[1753147253979,19.41578794,196.14,196.09,5.09969911]
[1753147254173,18.71578794,196.13,196.09,5.09969911]
[1753147254406,25.47575124,196.27,196.02,5.10152025]
[1753147254407,35.50047191,196.1,196.02,5.10152025]
[1753147254584,18.71578794,196.07,196.02,17.85532088]
[1753147254895,18.71578794,196.08,196.02,36.57110882]
[1753147255092,16.78468397,196.07,196.02,5.10152025]
[1753147255302,18.71578794,196.08,196.02,5.10152025]
[1753147255303,18.71578794,196.05,196.02,5.10152025]
[1753147255816,16.78468397,196.13,196.03,0.71]
[1753147256025,18.71578794,196.09,196.03,18.71578794]
[1753147256320,18.71578794,196.07,196.02,17.85532088]
[1753147256606,18.71578794,196.11,196.05,18.71578794]
[1753147257406,16.78468397,196.1,196.02,17.85532088]
[1753147257714,17.48468397,196.11,196.03,18.71578794]
[1753147258086,0.7,196.22,196.06,26.0]
[1753147258315,0.06,196.25,196.04,7.0508]
[1753147258316,1e-08,196.21,196.2,18.71578794]
[1753147258485,6.4315,196.42,196.23,26.0]
[1753147258678,6.4315,196.42,196.14,35.50047191]
[1753147258679,1e-08,196.29,196.28,18.71578794]
[1753147258980,18.71578794,196.43,196.31,26.0]
[1753147259199,0.7,196.49,196.4,13.33653269]
[1753147259510,13.33653269,196.41,196.32,0.71]
[1753147259692,11.52055979,196.5,196.31,45.18]
[1753147259693,13.33653269,196.37,196.35,5.09294626]
[1753147260078,0.7,196.4,196.35,5.09294626]
[1753147260079,13.33653269,196.39,196.35,5.09294626]
[1753147260279,13.33653269,196.36,196.21,43.0408]
[1753147260493,0.7,196.35,196.26,18.43181445]
[1753147260692,0.7,196.35,196.26,17.83348618]
[1753147260902,16.78468397,196.34,196.26,17.83348618]
[1753147261091,26.0,196.39,196.26,17.83348618]
[1753147261296,0.7,196.44,196.38,19.16238904]
[1753147261526,19.86238904,196.48,196.42,19.16238904]
[1753147261684,19.86238904,196.48,196.43,5.09087206]
[1753147261882,0.7,196.47,196.38,5.09216824]
[1753147262292,19.16238904,196.45,196.39,19.16238904]
[1753147262492,0.7,196.52,196.44,19.16238904]
[1753147262705,0.7,196.64,196.54,26.0]
[1753147262913,0.7,196.64,196.58,19.16238904]
[1753147263090,5.08310882,196.73,196.61,19.16238904]
[1753147263287,0.7,196.68,196.55,0.71]
[1753147263516,0.7,196.68,196.62,19.16238904]
[1753147263730,0.7,196.72,196.65,19.16238904]
[1753147263897,16.2059,196.83,196.64,5.08543531]
[1753147263898,0.7,196.75,196.67,19.16238904]
[1753147264086,6.2059,196.83,196.67,26.0]
[1753147264087,44.9,196.8,196.67,26.0]
[1753147264289,0.7,196.79,196.74,19.16238904]
[1753147264513,6.2059,196.83,196.67,26.0]
[1753147264514,0.7,196.78,196.67,26.0]
[1753147264714,0.06,196.77,196.72,19.16238904]
[1753147264884,0.06,196.77,196.75,19.16238904]
[1753147265087,0.06,196.77,196.76,19.16238904]
[1753147265414,0.7,196.91,196.85,0.347]
[1753147265596,19.16238904,196.86,196.85,0.347]
[1753147265911,26.0,196.83,196.73,19.16238904]
[1753147266108,0.7,196.86,196.76,26.0]
[1753147266305,0.7,196.91,196.81,26.0]
[1753147266507,19.16238904,196.94,196.88,19.16238904]
[1753147266851,19.16238904,196.94,196.75,44.74]
[1753147266852,26.0,196.86,196.7,5.08370261]
[1753147267110,26.0,196.86,196.6,25.43186337]
[1753147267111,26.0,196.82,196.68,19.16238904]
[1753147267323,19.16238904,196.74,196.68,19.16238904]
[1753147267499,26.0,196.78,196.61,16.78468397]
[1753147267500,0.7,196.81,196.69,0.71]
[1753147267689,19.16238904,196.73,196.67,19.16238904]
[1753147267890,19.16238904,196.73,196.64,5.79539711]
[1753147267891,19.16238904,196.75,196.64,5.79540861]
[1753147268117,16.78468397,196.74,196.64,0.71]
[1753147268316,16.78468397,196.78,196.71,19.16238904]
[1753147268515,0.66,196.84,196.77,19.16238904]
[1753147268700,0.66,196.84,196.7,16.78468397]
[1753147268701,19.16238904,196.86,196.79,19.16238904]
[1753147268898,19.16238904,196.86,196.75,0.71]
[1753147268899,0.66,196.89,196.78,26.0]
[1753147269289,19.16238904,196.85,196.79,19.16238904]
[1753147269500,44.98,196.93,196.78,26.0]
[1753147269501,19.16238904,196.9,196.84,19.16238904]
[1753147269694,19.16238904,196.93,196.87,19.16238904]
[1753147269897,1.5496,197.05,196.82,26.0]
[1753147269898,10.0,197.07,196.9,26.0]
[1753147270117,5.0729359,197.13,197.03,19.16238904]
[1753147270399,5.0729359,197.13,196.98,26.0]
[1753147270400,0.66,197.13,197.01,26.0]
[1753147270602,82.625722,197.29,197.06,19.16238904]
[1753147270603,10.0,197.26,197.06,19.16238904]
[1753147270808,0.66,197.18,197.12,26.0]
[1753147271012,6.67300849,197.25,197.12,26.0]
[1753147271013,19.16238904,197.24,197.12,26.0]
[1753147271213,2.6484543,197.26,197.13,0.71]
[1753147271413,0.66,197.33,197.22,19.16238904]
[1753147271628,5.7277448,197.33,197.22,19.16238904]
[1753147271838,5.72773389,197.33,197.21,19.16238904]
[1753147272013,5.72773389,197.33,197.23,19.16238904]
[1753147272197,5.72773389,197.33,197.18,26.0]
[1753147272198,0.66,197.32,197.18,45.16238904]
[1753147272395,0.66,197.32,197.13,0.71]
[1753147272396,26.0,197.3,197.14,26.0]
[1753147272595,0.66,197.32,197.13,0.71]
[1753147272596,6.6706136,197.35,197.21,19.16238904]
[1753147272798,6.6706136,197.35,197.15,0.71]
[1753147272799,5.06627092,197.39,197.22,0.71]
[1753147273009,17.73155284,197.39,197.24,26.0]
[1753147273209,0.66,197.38,197.22,0.71]
[1753147273521,26.0,197.3,197.17,0.71]
[1753147273738,0.66,197.32,197.27,19.16238904]
[1753147273919,6.1989,197.51,197.28,0.71]
[1753147273920,19.16238904,197.4,197.28,0.71]
[1753147274107,0.66,197.44,197.28,26.71]
[1753147274373,5.06380392,197.48,197.39,19.16238904]
[1753147274501,19.16238904,197.4,197.34,19.16238904]
[1753147274695,19.16238904,197.36,197.27,0.71]
[1753147274900,0.66,197.42,197.27,0.71]
[1753147275119,0.66,197.42,197.21,31.85534801]
[1753147275120,0.66,197.42,197.25,19.16238904]
[1753147275321,35.94707301,197.26,197.17,0.71]
[1753147275524,42.78468397,197.34,197.24,19.16238904]
[1753147275817,35.94707301,197.34,197.25,0.71]
[1753147276017,19.16238904,197.26,197.15,0.71]
[1753147276232,0.66,197.33,197.2,19.16238904]
[1753147276437,17.72600657,197.45,197.28,19.16238904]
[1753147276438,19.16238904,197.34,197.28,19.16238904]
[1753147276600,16.78468397,197.37,197.29,19.16238904]
[1753147276801,16.78468397,197.37,197.25,26.71]
[1753147277033,0.66,197.38,197.25,26.71]
[1753147277199,19.16238904,197.37,197.31,19.16238904]
[1753147277399,16.78468397,197.34,197.29,0.71]
[1753147277629,35.94707301,197.33,197.26,19.16238904]
[1753147277921,35.94707301,197.33,197.27,19.16238904]
[1753147277922,21.85246067,197.33,197.27,19.16238904]
[1753147278143,19.16238904,197.38,197.32,19.16238904]
[1753147278341,19.16238904,197.38,197.27,0.71]
[1753147278545,12.66016579,197.47,197.19,10.0]
[1753147278546,19.16238904,197.32,197.22,0.71]
[1753147278722,16.78468397,197.26,197.17,0.71]
[1753147279050,0.66,197.31,197.25,19.16238904]
[1753147279343,26.0,197.38,197.17,0.71]
[1753147279344,19.16238904,197.34,197.28,19.16238904]
[1753147279516,16.78468397,197.33,197.29,19.16238904]
[1753147279717,24.23081276,197.3,197.22,0.71]
[1753147279933,19.16238904,197.27,197.21,19.16238904]
[1753147280116,0.66,197.38,197.26,19.16238904]
[1753147280316,0.66,197.37,197.19,0.71]
[1753147280545,0.66,197.37,197.18,5.0714194]
[1753147280546,26.0,197.31,197.15,19.16238904]
[1753147280719,26.0,197.31,197.12,0.71]
[1753147280720,19.16238904,197.18,197.13,19.16238904]
[1753147280925,19.16238904,197.18,197.12,19.16238904]
[1753147281127,19.16238904,197.18,197.08,0.71]
[1753147281128,0.66,197.21,197.1,19.16238904]
[1753147281347,19.16238904,197.17,197.11,19.16238904]
[1753147281556,19.16238904,197.16,197.1,19.87238904]
[1753147281719,0.66,197.24,197.1,19.87238904]
[1753147281720,19.16238904,197.18,197.1,0.71]
[1753147281922,19.16238904,197.17,197.11,19.16238904]
[1753147282138,0.66,197.24,197.08,19.16238904]
[1753147282139,19.16238904,197.14,197.08,19.16238904]
[1753147282521,19.16238904,197.16,197.09,0.71]
[1753147282852,19.16238904,197.15,197.09,19.87238904]
[1753147283018,19.16238904,197.14,197.09,0.71]
[1753147283213,17.74577903,197.23,197.04,0.71]
[1753147283214,19.16238904,197.1,197.04,0.71]
[1753147283438,19.16238904,197.09,196.91,17.8017]
[1753147283637,19.16238904,197.04,196.92,5.78820434]
[1753147283844,19.16238904,196.98,196.92,19.87238904]
[1753147284046,19.16238904,196.95,196.89,19.16238904]
[1753147284216,19.16238904,196.9,196.82,19.16238904]
[1753147284421,26.0,196.97,196.81,0.71]
[1753147284422,19.16238904,196.89,196.83,19.16238904]
[1753147284658,0.66,196.99,196.88,19.16238904]
[1753147284950,17.76649745,197.0,196.93,19.16238904]
[1753147284951,5.07614213,197.0,196.93,19.16238904]
[1753147285243,5.07433906,197.07,196.97,19.16238904]
[1753147285443,19.16238904,197.02,196.96,19.16238904]
[1753147285642,19.16238904,196.98,196.92,0.71]
[1753147285855,19.16238904,196.97,196.92,19.87238904]
[1753147286026,0.66,197.09,196.96,19.16238904]
[1753147286225,19.16238904,197.05,196.99,19.16238904]
[1753147286634,19.16238904,197.0,196.91,0.71]
[1753147286838,26.66,197.09,196.99,19.16238904]
[1753147287026,19.16238904,197.02,196.96,19.16238904]
[1753147287235,19.16238904,196.98,196.88,0.71]
[1753147287421,0.66,197.04,196.88,19.16238904]
[1753147287422,19.16238904,196.94,196.88,19.16238904]
[1753147287743,5.07923608,196.88,196.81,0.03]
[1753147287946,19.16238904,196.84,196.81,0.03]
[1753147288129,19.16238904,196.82,196.81,0.03]
[1753147288330,12.69265259,196.97,196.81,0.03]
[1753147288538,0.66,197.09,196.96,19.16238904]
[1753147288766,6.0097,197.18,196.82,46.01807844]
[1753147288767,5.07350884,197.11,197.03,19.16238904]
[1753147289040,5.07205708,197.16,197.04,0.71]
[1753147289245,5.07099391,197.2,197.06,26.0]
[1753147289454,19.16238904,197.17,197.11,19.16238904]
[1753147289640,5.07099391,197.2,197.11,19.16238904]
[1753147289950,37.18,197.21,197.12,19.16238904]
[1753147289951,0.66,197.21,197.12,19.16238904]
[1753147290146,1.5338,197.29,197.16,19.16238904]
[1753147290147,0.66,197.26,197.16,19.16238904]
[1753147290351,0.66,197.26,197.12,26.0]
[1753147290653,0.66,197.26,197.11,0.71]
[1753147290654,19.16238904,197.26,197.14,26.0]
[1753147290826,5.0691945,197.27,197.15,0.71]
[1753147291154,27.13290867,197.26,197.2,27.13290867]
[1753147291325,5.0691945,197.27,197.09,0.71]
[1753147291326,27.13290867,197.21,197.09,0.71]
[1753147291529,27.13290867,197.16,197.09,26.71]
[1753147291741,5.0727946,197.13,197.04,5.78497609]
[1753147291948,5.0727946,197.13,196.99,16.78468397]
[1753147291949,5.0727946,197.13,196.99,0.71]
[1753147292158,27.13290867,197.07,197.01,27.13290867]
[1753147292326,27.13290867,197.1,197.04,27.13290867]
[1753147292523,32.20570327,197.13,197.07,27.13290867]
[1753147292833,5.07249215,197.15,197.09,27.13290867]
[1753147293033,5.07249215,197.15,197.07,27.13290867]
[1753147293034,27.13290867,197.13,197.07,27.13290867]
[1753147293238,27.13290867,197.09,197.0,26.71]
[1753147293554,0.66,197.39,197.12,26.0]
[1753147293736,15.211824,197.46,197.12,26.0]
[1753147293737,0.66,197.45,197.38,27.13290867]
[1753147293933,27.13290867,197.51,197.41,27.13290867]
[1753147294135,3.30380097,197.55,197.41,53.13290867]
[1753147294331,0.06,197.46,197.41,27.84290867]
[1753147294537,0.66,197.61,197.45,53.13290867]
[1753147294740,5.06093636,197.6,197.46,0.71]
[1753147294956,27.13290867,197.59,197.53,27.13290867]
[1753147295254,12.64934241,197.64,197.58,27.13290867]
[1753147295255,27.13290867,197.64,197.58,27.13290867]
[1753147295551,27.13290867,197.64,197.52,26.71]
[1753147295753,5.05996053,197.63,197.52,31.77277517]
[1753147295957,27.13290867,197.66,197.59,27.13290867]
[1753147296146,27.13290867,197.65,197.59,27.13290867]
[1753147296448,5.05911036,197.67,197.53,0.71]
[1753147296756,27.13290867,197.7,197.64,27.13290867]
[1753147296951,27.13290867,197.7,197.59,0.71]
[1753147297140,13.30299625,197.74,197.59,0.71]
[1753147297339,5.0574015,197.73,197.59,0.71]
[1753147297662,17.70090526,197.73,197.61,27.13290867]
[1753147297953,17.70090526,197.73,197.52,5.06277517]
[1753147297954,27.13290867,197.62,197.49,0.71]
[1753147298158,0.68,197.66,197.58,27.13290867]
[1753147298448,0.68,197.72,197.58,0.66]
[1753147298656,27.13290867,197.68,197.62,27.13290867]
[1753147298952,0.68,197.72,197.62,27.13290867]
[1753147299152,0.68,197.72,197.6,27.13290867]
[1753147299360,27.13290867,197.66,197.6,27.13290867]
[1753147299539,27.13290867,197.61,197.54,27.13290867]
[1753147299737,27.13290867,197.61,197.49,0.66]
[1753147299932,22.06351629,197.56,197.49,0.66]
[1753147300126,0.68,197.61,197.4,44.54]
[1753147300127,22.06351629,197.52,197.46,22.06351629]
[1753147300351,22.06351629,197.49,197.43,22.06351629]
[1753147300536,22.06351629,197.49,197.4,0.66]
[1753147300730,22.06351629,197.5,197.44,22.06351629]
[1753147300927,5.05970451,197.64,197.49,22.06351629]
[1753147301133,0.68,197.66,197.6,22.06351629]
[1753147301331,22.06351629,197.62,197.55,26.0]
[1753147301551,22.06351629,197.61,197.55,22.06351629]
[1753147301743,22.06351629,197.63,197.53,5.72231156]
[1753147302051,22.06351629,197.65,197.56,26.0]
[1753147302254,22.06351629,197.58,197.52,22.06351629]
[1753147302464,22.06351629,197.55,197.49,22.06351629]
[1753147302953,22.06351629,197.55,197.48,22.06351629]
[1753147303154,10.0,197.69,197.48,22.06351629]
[1753147303155,0.68,197.62,197.5,22.06351629]
[1753147303344,22.06351629,197.59,197.52,22.06351629]
[1753147303649,22.06351629,197.6,197.54,22.06351629]
[1753147303853,5.06098486,197.59,197.54,22.06351629]
[1753147304058,22.06351629,197.64,197.56,26.0]
[1753147304233,5.05927498,197.66,197.56,26.0]
[1753147304432,0.68,197.74,197.57,0.66]
[1753147304643,22.06351629,197.75,197.58,6.5281241]
[1753147304842,22.06351629,197.67,197.59,0.66]
[1753147305060,26.0,197.78,197.59,0.66]
[1753147305061,0.68,197.72,197.62,22.06351629]
[1753147305240,22.06351629,197.7,197.64,22.06351629]
[1753147305438,0.68,197.76,197.63,22.06351629]
[1753147305740,0.68,197.76,197.59,0.66]
[1753147305741,22.06351629,197.68,197.59,26.66]
[1753147305944,22.06351629,197.69,197.62,22.06351629]
[1753147306534,22.06351629,197.69,197.59,26.66]
[1753147306535,22.06351629,197.66,197.6,22.06351629]
[1753147306741,5.05826263,197.7,197.59,26.66]
[1753147306962,22.06351629,197.65,197.59,48.72351629]
[1753147307139,22.06351629,197.69,197.62,22.06351629]
[1753147307464,22.06351629,197.66,197.59,0.66]
[1753147307653,22.06351629,197.68,197.61,22.06351629]
[1753147307853,10.0,197.84,197.64,22.06351629]
[1753147308047,5.05561172,197.8,197.71,22.06351629]
[1753147308251,5.05561172,197.8,197.65,0.66]
[1753147308252,22.06351629,197.74,197.65,0.66]
[1753147308557,22.06351629,197.66,197.6,0.66]
[1753147308760,0.68,197.73,197.61,22.06351629]
[1753147308761,22.06351629,197.67,197.61,22.06351629]
[1753147308975,17.69464104,197.8,197.61,22.06351629]
[1753147308976,0.68,197.79,197.66,22.06351629]
[1753147309263,22.06351629,197.74,197.64,70.2]
[1753147309442,22.06351629,197.72,197.66,22.06351629]
[1753147309760,26.0,197.77,197.57,5.72142249]
[1753147309967,5.0579131,197.71,197.59,7.33]
[1753147310158,0.68,197.72,197.63,22.06351629]
[1753147310350,22.06351629,197.71,197.65,22.06351629]
[1753147310544,5.05758442,197.73,197.62,0.66]
[1753147310750,5.05758442,197.73,197.62,22.72351629]
[1753147310949,22.06351629,197.7,197.63,22.06351629]
[1753147311254,22.06351629,197.7,197.64,22.06351629]
[1753147311458,22.06351629,197.7,197.55,26.78468397]
[1753147311459,26.0,197.62,197.44,58.50351629]
[1753147311764,26.0,197.62,197.4,0.66]
[1753147311765,26.0,197.6,197.4,0.66]
[1753147311971,22.06351629,197.42,197.35,66.06351629]
[1753147312148,22.06351629,197.42,197.36,22.06351629]
[1753147312346,22.06351629,197.39,197.34,0.66]
[1753147312554,22.06351629,197.4,197.35,0.66]
[1753147313067,0.68,197.44,197.32,43.94]
[1753147313255,5.06475853,197.45,197.33,22.06351629]
[1753147313441,0.68,197.49,197.34,44.56]
[1753147313638,22.06351629,197.49,197.43,22.06351629]
[1753147313836,22.06351629,197.56,197.48,27.12732021]
[1753147314145,5.74112875,197.59,197.46,0.66]
[1753147314341,22.06351629,197.47,197.39,43.86]
[1753147314661,22.06351629,197.44,197.37,65.90351629]
[1753147314962,22.06351629,197.44,197.37,69.84]
[1753147315169,22.06351629,197.44,197.38,15.66939411]
[1753147315170,15.66939411,197.44,197.38,15.66939411]
[1753147315373,15.66939411,197.44,197.38,43.82]
[1753147315550,15.66939411,197.4,197.37,26.0]
[1753147315855,15.66939411,197.38,197.3,48.84841787]
[1753147316169,15.66939411,197.35,197.3,43.78]
[1753147316375,5.74630502,197.39,197.3,44.44]
[1753147316376,15.66939411,197.34,197.3,44.44]
[1753147316549,0.68,197.46,197.33,15.66939411]
[1753147316749,0.06,197.38,197.33,15.66939411]
[1753147316970,0.06,197.38,197.34,0.66]
[1753147317168,0.06,197.38,197.37,26.0]
[1753147317360,0.06,197.38,197.37,16.32939411]
[1753147317560,0.06,197.38,197.37,43.66]
[1753147317767,0.06,197.38,197.37,59.98939411]
[1753147317969,0.06,197.38,197.37,44.32]
[1753147318264,0.06,197.38,197.37,59.98939411]
[1753147318467,1e-08,197.49,197.47,15.66939411]
[1753147318675,0.1,197.61,197.38,30.39821662]
[1753147318676,0.1,197.61,197.52,26.0]
[1753147318973,15.66939411,197.58,197.51,15.66939411]
[1753147319158,22.0677449,197.57,197.51,22.0677449]
[1753147319469,5.84065559,197.61,197.51,22.0677449]
[1753147319763,22.0677449,197.57,197.5,22.0677449]
[1753147320266,0.68,197.56,197.45,22.0677449]
[1753147320448,5.06097429,197.6,197.51,22.0677449]
[1753147320651,22.0677449,197.57,197.51,22.0677449]
[1753147320858,5.84049057,197.61,197.51,43.48]
[1753147321154,0.1,197.61,197.59,22.0677449]
[1753147321357,22.1677449,197.61,197.52,0.66]
[1753147321565,22.1677449,197.61,197.53,43.42]
[1753147321566,5.16054708,197.61,197.53,43.42]
[1753147321762,22.0677449,197.54,197.46,0.66]
[1753147322067,22.0677449,197.6,197.53,22.0677449]
[1753147322243,0.1,197.61,197.59,22.0677449]
[1753147322444,0.1,197.61,197.6,22.0677449]
[1753147322753,0.1,197.61,197.52,43.38]
[1753147322754,0.1,197.61,197.52,43.36]
[1753147322959,0.1,197.61,197.6,22.0677449]
[1753147323351,0.68,197.75,197.6,39.51242887]
[1753147323553,10.0,197.89,197.66,26.0]
[1753147323554,0.68,197.89,197.66,26.0]
[1753147323759,10.0,198.02,197.63,10.0]
[1753147323760,0.68,198.03,197.83,26.0]
[1753147323959,0.3129535,198.09,197.99,22.0677449]
[1753147324183,0.3129535,198.09,198.03,22.0677449]
[1753147324371,0.3129535,198.09,198.06,22.0677449]
[1753147324555,0.3129535,198.09,198.08,22.0677449]
[1753147324751,2.2163,198.21,198.08,22.0677449]
[1753147324752,22.0677449,198.21,198.11,26.0]
[1753147324963,0.68,198.24,198.11,26.0]
[1753147325266,0.68,198.24,198.12,0.66]
[1753147325267,22.0677449,198.19,198.12,0.66]
[1753147325471,22.0677449,198.19,198.06,0.66]
[1753147325472,22.0677449,198.13,198.06,0.66]
[1753147325670,0.68,198.18,197.96,5.05152556]
[1753147325846,0.68,198.18,198.06,22.0677449]
[1753147326047,22.0677449,198.07,197.92,5.05254648]
[1753147326248,0.68,198.06,197.89,0.66]
[1753147326463,0.68,198.06,197.96,22.0677449]
[1753147326661,22.0677449,198.06,197.99,22.0677449]
[1753147326849,0.68,198.11,198.04,26.0]
[1753147327152,0.68,198.15,197.98,0.66]
[1753147327772,0.68,198.15,197.93,16.78468397]
[1753147327773,0.68,198.15,198.01,22.0677449]
[1753147328067,5.72675323,198.15,198.06,22.0677449]
[1753147328373,22.0677449,198.16,198.09,22.0677449]
[1753147328571,0.72,198.15,198.03,0.69]
[1753147328774,22.0677449,198.04,197.95,22.0677449]
[1753147328972,22.0677449,197.96,197.84,0.69]
[1753147329181,22.0677449,197.94,197.84,0.69]
[1753147329360,22.0677449,197.88,197.79,43.12]
[1753147329556,0.72,197.94,197.82,22.0677449]
[1753147329748,22.0677449,197.9,197.8,0.69]
[1753147329950,0.72,197.94,197.8,0.69]
[1753147329951,5.05229121,197.93,197.8,0.69]
[1753147330257,22.0677449,197.87,197.8,22.0677449]
[1753147330457,0.72,197.88,197.72,0.69]
[1753147330658,0.72,197.88,197.76,22.0677449]
[1753147330863,22.0677449,197.83,197.76,22.0677449]
[1753147331065,0.72,197.88,197.79,22.0677449]
[1753147331265,22.7877449,197.88,197.81,22.0677449]
[1753147331461,22.0677449,197.82,197.71,0.69]
[1753147331650,0.72,197.88,197.75,22.0677449]
[1753147331858,22.0677449,197.83,197.76,22.0677449]
[1753147332171,0.72,197.88,197.79,22.0677449]
[1753147332172,22.0677449,197.86,197.79,22.0677449]
[1753147332373,22.0677449,197.86,197.75,0.69]
[1753147332568,0.72,197.93,197.83,22.0677449]
[1753147332778,0.72,197.93,197.86,22.0677449]
[1753147332965,22.0677449,197.9,197.84,22.0677449]
[1753147333166,22.0677449,197.9,197.79,26.0]
[1753147333167,22.0677449,197.95,197.89,22.0677449]
[1753147333374,0.72,197.98,197.82,0.69]
[1753147333375,22.0677449,197.97,197.91,22.0677449]
[1753147333676,5.05017847,198.02,197.92,22.0677449]
[1753147333879,22.0677449,198.0,197.93,22.0677449]
[1753147334177,5.05045137,198.01,197.92,22.0677449]
[1753147334357,22.0677449,197.98,197.91,22.0677449]
[1753147334558,43.8,198.03,197.89,31.05320097]
[1753147334559,22.0677449,198.0,197.93,22.0677449]
[1753147334782,43.8,198.03,197.93,22.0677449]
[1753147334979,22.0677449,197.99,197.93,22.0677449]
[1753147335180,48.84984224,198.03,197.87,5.7436885]
[1753147335383,22.0677449,197.96,197.87,5.7436885]
[1753147335585,0.72,198.03,197.94,22.0677449]
[1753147335783,22.0677449,198.01,197.94,22.0677449]
[1753147336283,5.76993087,198.03,197.87,5.74376335]
[1753147336489,22.0677449,197.97,197.91,22.0677449]
[1753147336689,22.0677449,197.99,197.92,22.0677449]
[1753147336880,22.0677449,197.98,197.91,22.0677449]
[1753147337062,5.76993087,198.03,197.94,22.0677449]
[1753147337380,22.0677449,197.96,197.87,5.74376335]
[1753147337580,22.0677449,197.98,197.92,22.0677449]
[1753147337977,22.0677449,197.94,197.87,22.0677449]
[1753147338161,22.0677449,197.88,197.77,5.05637862]
[1753147338361,0.72,197.93,197.83,22.0677449]
[1753147338580,22.0677449,197.91,197.8,26.0]
[1753147338757,22.0677449,197.88,197.79,0.69]
[1753147338976,0.72,197.9,197.83,22.0677449]